[Event "Late-Titled-Tuesday-Blitz-October-10-2023"]
[Site "Chess.com"]
[Date "2023.10.10"]
[Round "9"]
[White "Cheer_Down"]
[Black "giomar27"]
[Result "0-1"]
[WhiteElo "2448"]
[BlackElo "2308"]
[TimeControl "180+1"]
[EndTime "15:38:55 PDT"]
[Termination "giomar27 won by resignation"]

1. e4 {[%clk 0:03:00.9]} 1... a6 {[%clk 0:02:57.5]} 2. d4 {[%clk 0:02:58.7]}
2... e6 {[%clk 0:02:57.8]} 3. Nf3 {[%clk 0:02:55.9]} 3... d5 {[%clk 0:02:57.9]}
4. e5 {[%clk 0:02:46]} 4... c5 {[%clk 0:02:57.9]} 5. c3 {[%clk 0:02:44.9]} 5...
Nc6 {[%clk 0:02:57.2]} 6. a3 {[%clk 0:02:43.9]} 6... b5 {[%clk 0:02:50.1]} 7.
Bd3 {[%clk 0:02:41.4]} 7... Qb6 {[%clk 0:02:49.3]} 8. Bc2 {[%clk 0:02:29.5]}
8... Nh6 {[%clk 0:02:42.2]} 9. Bxh6 {[%clk 0:02:24.4]} 9... gxh6 {[%clk
0:02:42.4]} 10. O-O {[%clk 0:02:24.6]} 10... Rg8 {[%clk 0:02:38.2]} 11. b4
{[%clk 0:02:17.3]} 11... cxd4 {[%clk 0:02:37.9]} 12. cxd4 {[%clk 0:02:17.4]}
12... Bd7 {[%clk 0:02:36.5]} 13. Nc3 {[%clk 0:02:05.2]} 13... f6 {[%clk
0:02:36.4]} 14. exf6 {[%clk 0:01:58.3]} 14... Bd6 {[%clk 0:02:35.9]} 15. Bxh7
{[%clk 0:01:48.7]} 15... Rg4 {[%clk 0:02:35.6]} 16. h3 {[%clk 0:01:40.7]} 16...
Rf4 {[%clk 0:02:10.9]} 17. Bg6+ {[%clk 0:01:40]} 17... Kd8 {[%clk 0:02:09.3]}
18. f7 {[%clk 0:01:29.9]} 18... Kc7 {[%clk 0:01:58.3]} 19. Re1 {[%clk
0:01:21.3]} 19... Nxd4 {[%clk 0:01:57.4]} 20. Nxd4 {[%clk 0:01:16.4]} 20... Rxd4
{[%clk 0:01:57.5]} 21. Qh5 {[%clk 0:01:11]} 21... Rf4 {[%clk 0:01:55.3]} 22. Re2
{[%clk 0:01:07.4]} 22... Qd4 {[%clk 0:01:44.8]} 23. Rc1 {[%clk 0:01:05.7]} 23...
Kb7 {[%clk 0:01:44.2]} 24. g3 {[%clk 0:00:59.4]} 24... Rf6 {[%clk 0:01:42.4]}
25. Kg2 {[%clk 0:00:56.7]} 25... Rc8 {[%clk 0:01:40.3]} 26. Rec2 {[%clk
0:00:33.5]} 26... Bc6 {[%clk 0:01:03.5]} 27. Qe2 {[%clk 0:00:27.3]} 27... Rxg6
{[%clk 0:00:59.7]} 28. Na2 {[%clk 0:00:17.4]} 28... Qe4+ {[%clk 0:00:46.4]} 29.
Qxe4 {[%clk 0:00:17]} 29... dxe4 {[%clk 0:00:47.3]} 30. Rd2 {[%clk 0:00:16.8]}
30... e3+ {[%clk 0:00:37.6]} 31. Rxc6 {[%clk 0:00:15.4]} 31... exd2 {[%clk
0:00:37.6]} 32. Rxd6 {[%clk 0:00:15.7]} 32... Rf6 {[%clk 0:00:30.3]} 33. Rxd2
{[%clk 0:00:15.1]} 33... Rxf7 {[%clk 0:00:30.8]} 34. Rd3 {[%clk 0:00:13.9]}
34... Rc2 {[%clk 0:00:30.2]} 35. Nc3 {[%clk 0:00:13.5]} 35... Rfxf2+ {[%clk
0:00:29.9]} 36. Kg1 {[%clk 0:00:14.4]} 36... Rg2+ {[%clk 0:00:30]} 37. Kf1
{[%clk 0:00:14.6]} 37... Rcf2+ {[%clk 0:00:29.8]} 0-1

[Event "Late-Titled-Tuesday-Blitz-October-10-2023"]
[Site "Chess.com"]
[Date "2023.10.10"]
[Round "9"]
[White "ozates"]
[Black "shimastream"]
[Result "0-1"]
[WhiteElo "2785"]
[BlackElo "3007"]
[TimeControl "180+1"]
[EndTime "15:38:59 PDT"]
[Termination "shimastream won on time"]

1. e4 {[%clk 0:03:00.9]} 1... d6 {[%clk 0:03:00.9]} 2. d4 {[%clk 0:03:00.7]}
2... c6 {[%clk 0:03:01.8]} 3. Nc3 {[%clk 0:02:58.1]} 3... e5 {[%clk 0:03:01.4]}
4. Nf3 {[%clk 0:02:52.1]} 4... Qc7 {[%clk 0:03:01.4]} 5. a4 {[%clk 0:02:51.2]}
5... Nf6 {[%clk 0:03:01]} 6. h3 {[%clk 0:02:46.8]} 6... Be7 {[%clk 0:03:00.3]}
7. Bd3 {[%clk 0:02:45]} 7... Nbd7 {[%clk 0:02:59.3]} 8. O-O {[%clk 0:02:43.3]}
8... O-O {[%clk 0:02:58]} 9. a5 {[%clk 0:02:39.7]} 9... Rb8 {[%clk 0:02:56.7]}
10. Be3 {[%clk 0:02:33.6]} 10... b5 {[%clk 0:02:51.9]} 11. axb6 {[%clk
0:02:28.7]} 11... axb6 {[%clk 0:02:52.8]} 12. d5 {[%clk 0:02:25.7]} 12... cxd5
{[%clk 0:02:50.9]} 13. exd5 {[%clk 0:02:21.5]} 13... Nc5 {[%clk 0:02:50.3]} 14.
Bb5 {[%clk 0:02:16.7]} 14... Bb7 {[%clk 0:02:50]} 15. Re1 {[%clk 0:02:06.1]}
15... Ra8 {[%clk 0:02:48.2]} 16. Bg5 {[%clk 0:01:56]} 16... Rxa1 {[%clk
0:02:40.9]} 17. Qxa1 {[%clk 0:01:55.3]} 17... Nxd5 {[%clk 0:02:41.5]} 18. Bxe7
{[%clk 0:01:43.4]} 18... Qxe7 {[%clk 0:02:35.7]} 19. Qa7 {[%clk 0:01:31.3]}
19... Nxc3 {[%clk 0:02:34.9]} 20. bxc3 {[%clk 0:01:30.8]} 20... Qc7 {[%clk
0:02:30.3]} 21. Ra1 {[%clk 0:01:21.5]} 21... h6 {[%clk 0:02:26]} 22. Qa2 {[%clk
0:00:52.9]} 22... Bxf3 {[%clk 0:02:24.5]} 23. gxf3 {[%clk 0:00:52.4]} 23... Ne6
{[%clk 0:02:25.2]} 24. Bd3 {[%clk 0:00:46.1]} 24... Nf4 {[%clk 0:02:23.7]} 25.
Bf1 {[%clk 0:00:38.8]} 25... Qxc3 {[%clk 0:02:21.9]} 26. Qa3 {[%clk 0:00:38.4]}
26... Qc7 {[%clk 0:02:05.6]} 27. Rb1 {[%clk 0:00:32.4]} 27... Rd8 {[%clk
0:02:00]} 28. Qb3 {[%clk 0:00:30.7]} 28... Rb8 {[%clk 0:01:55.7]} 29. Rd1 {[%clk
0:00:26.6]} 29... g6 {[%clk 0:01:54.1]} 30. Qe3 {[%clk 0:00:18.2]} 30... Kg7
{[%clk 0:01:53.5]} 31. Qd2 {[%clk 0:00:16]} 31... Rd8 {[%clk 0:01:53.3]} 32. Qe3
{[%clk 0:00:15.9]} 32... d5 {[%clk 0:01:48.7]} 33. Rb1 {[%clk 0:00:13.5]} 33...
d4 {[%clk 0:01:48.3]} 34. Qb3 {[%clk 0:00:13.4]} 34... Rd6 {[%clk 0:01:46.2]}
35. Ra1 {[%clk 0:00:10]} 35... Rc6 {[%clk 0:01:36.4]} 36. Ra8 {[%clk 0:00:08.6]}
36... Rc3 {[%clk 0:01:34.7]} 37. Qb4 {[%clk 0:00:05.3]} 37... Qc5 {[%clk
0:01:34.5]} 38. Qa4 {[%clk 0:00:05.5]} 38... Qc6 {[%clk 0:01:20.6]} 39. Qa7
{[%clk 0:00:02]} 39... Rxf3 {[%clk 0:00:52.4]} 40. Qb8 {[%clk 0:00:00.2]} 40...
Kf6 {[%clk 0:00:52.6]} 0-1

[Event "Late-Titled-Tuesday-Blitz-October-10-2023"]
[Site "Chess.com"]
[Date "2023.10.10"]
[Round "9"]
[White "Eliwood44"]
[Black "TanitoluwaAps116"]
[Result "1-0"]
[WhiteElo "2503"]
[BlackElo "2660"]
[TimeControl "180+1"]
[EndTime "15:39:14 PDT"]
[Termination "Eliwood44 won on time"]

1. d4 {[%clk 0:03:00.9]} 1... Nf6 {[%clk 0:02:59.4]} 2. c4 {[%clk 0:03:01]} 2...
e6 {[%clk 0:02:59.2]} 3. Nf3 {[%clk 0:03:01.3]} 3... b6 {[%clk 0:02:59.1]} 4. g3
{[%clk 0:03:00.6]} 4... Ba6 {[%clk 0:02:58.5]} 5. Qc2 {[%clk 0:02:59]} 5... Bb7
{[%clk 0:02:53.3]} 6. Bg2 {[%clk 0:02:58.6]} 6... c5 {[%clk 0:02:53.8]} 7. dxc5
{[%clk 0:02:56]} 7... Bxc5 {[%clk 0:02:52.7]} 8. O-O {[%clk 0:02:56.4]} 8... O-O
{[%clk 0:02:52.9]} 9. Rd1 {[%clk 0:02:56.2]} 9... Qe7 {[%clk 0:02:51.1]} 10. Nc3
{[%clk 0:02:55.8]} 10... d5 {[%clk 0:02:51.1]} 11. cxd5 {[%clk 0:02:52.1]} 11...
Nxd5 {[%clk 0:02:52]} 12. Ne4 {[%clk 0:02:47.7]} 12... Nd7 {[%clk 0:02:48.7]}
13. Nfg5 {[%clk 0:02:42.2]} 13... f5 {[%clk 0:02:36]} 14. Nxc5 {[%clk
0:02:39.3]} 14... Nxc5 {[%clk 0:02:36.9]} 15. a3 {[%clk 0:02:34.2]} 15... Rac8
{[%clk 0:02:35.3]} 16. Qb1 {[%clk 0:02:28.8]} 16... Nb3 {[%clk 0:02:29]} 17. e4
{[%clk 0:02:18.8]} 17... Nf6 {[%clk 0:01:37.8]} 18. Qa2 {[%clk 0:01:15.5]} 18...
Nxa1 {[%clk 0:01:19.8]} 19. Nxe6 {[%clk 0:01:14.5]} 19... Rf7 {[%clk 0:01:10.1]}
20. Ng5 {[%clk 0:01:04.1]} 20... Nc2 {[%clk 0:01:02.2]} 21. e5 {[%clk
0:00:59.7]} 21... Bxg2 {[%clk 0:00:30.7]} 22. exf6 {[%clk 0:00:56.3]} 22... Qxf6
{[%clk 0:00:26.3]} 23. Rd7 {[%clk 0:00:50]} 23... Nd4 {[%clk 0:00:07.2]} 24.
Nxf7 {[%clk 0:00:27.2]} 24... Rxc1+ {[%clk 0:00:03]} 25. Kxg2 {[%clk 0:00:27.4]}
25... Qc6+ {[%clk 0:00:03.1]} 26. Kh3 {[%clk 0:00:27.6]} 26... Kf8 {[%clk
0:00:02.1]} 27. Rxd4 {[%clk 0:00:22.9]} 27... Qg6 {[%clk 0:00:01.5]} 28. Qd5
{[%clk 0:00:07.3]} 28... Qxf7 {[%clk 0:00:01.3]} 29. Qa8+ {[%clk 0:00:04.3]}
29... Qe8 {[%clk 0:00:01.1]} 30. Rd8 {[%clk 0:00:03.6]} 1-0

[Event "Late-Titled-Tuesday-Blitz-October-10-2023"]
[Site "Chess.com"]
[Date "2023.10.10"]
[Round "9"]
[White "PatzerSmashers"]
[Black "Witty_Alien"]
[Result "0-1"]
[WhiteElo "2390"]
[BlackElo "2254"]
[TimeControl "180+1"]
[EndTime "15:39:14 PDT"]
[Termination "Witty_Alien won by checkmate"]

1. Nf3 {[%clk 0:03:00]} 1... Nf6 {[%clk 0:02:55.8]} 2. c4 {[%clk 0:02:59.4]}
2... c5 {[%clk 0:02:51.3]} 3. Nc3 {[%clk 0:02:58.9]} 3... Nc6 {[%clk 0:02:50.3]}
4. e3 {[%clk 0:02:59.2]} 4... g6 {[%clk 0:02:47.6]} 5. d4 {[%clk 0:02:58.6]}
5... cxd4 {[%clk 0:02:46.7]} 6. exd4 {[%clk 0:02:59.5]} 6... d6 {[%clk
0:02:45.3]} 7. Be2 {[%clk 0:02:45.3]} 7... Bg7 {[%clk 0:02:45.1]} 8. O-O {[%clk
0:02:45.4]} 8... O-O {[%clk 0:02:42]} 9. h3 {[%clk 0:02:42.7]} 9... Bf5 {[%clk
0:02:37.4]} 10. Be3 {[%clk 0:02:31.6]} 10... Rc8 {[%clk 0:02:29.7]} 11. Rc1
{[%clk 0:02:31.2]} 11... h6 {[%clk 0:02:25.6]} 12. d5 {[%clk 0:02:20]} 12... Na5
{[%clk 0:02:10.8]} 13. b3 {[%clk 0:02:18.4]} 13... b6 {[%clk 0:02:11.2]} 14. Qd2
{[%clk 0:02:09.3]} 14... Kh7 {[%clk 0:02:10.1]} 15. Nd4 {[%clk 0:02:08.8]} 15...
Bd7 {[%clk 0:02:02.1]} 16. Rfe1 {[%clk 0:02:05.2]} 16... Nb7 {[%clk 0:01:56.4]}
17. b4 {[%clk 0:01:56.4]} 17... b5 {[%clk 0:01:18.2]} 18. Ndxb5 {[%clk
0:01:41.7]} 18... Bxb5 {[%clk 0:01:18.1]} 19. Nxb5 {[%clk 0:01:39.9]} 19... a6
{[%clk 0:01:17.7]} 20. Nd4 {[%clk 0:01:38.7]} 20... Ne4 {[%clk 0:01:17.9]} 21.
Qd3 {[%clk 0:01:37.4]} 21... f5 {[%clk 0:01:18.4]} 22. Ne6 {[%clk 0:01:32.8]}
22... Qd7 {[%clk 0:01:17.6]} 23. c5 {[%clk 0:01:20.4]} 23... dxc5 {[%clk
0:00:50.9]} 24. bxc5 {[%clk 0:01:21.3]} 24... Nd8 {[%clk 0:00:24.6]} 25. c6
{[%clk 0:00:57.9]} 25... Qd6 {[%clk 0:00:16]} 26. Bf4 {[%clk 0:00:52.1]} 26...
Qb4 {[%clk 0:00:12.9]} 27. Nxf8+ {[%clk 0:00:49.5]} 27... Bxf8 {[%clk
0:00:13.4]} 28. Rc4 {[%clk 0:00:47.5]} 28... Qxe1+ {[%clk 0:00:12.8]} 29. Bf1
{[%clk 0:00:47.9]} 29... Qxf2+ {[%clk 0:00:12.1]} 30. Kh1 {[%clk 0:00:47.8]}
30... Qxf4 {[%clk 0:00:11.8]} 31. Kg1 {[%clk 0:00:39.9]} 31... Qf2+ {[%clk
0:00:10.7]} 32. Kh2 {[%clk 0:00:39.7]} 32... Qf4+ {[%clk 0:00:08.3]} 33. Kg1
{[%clk 0:00:39.6]} 33... Nf7 {[%clk 0:00:07.3]} 34. Qd4 {[%clk 0:00:33.7]} 34...
Bg7 {[%clk 0:00:05.7]} 35. Qb6 {[%clk 0:00:29.6]} 35... Ne5 {[%clk 0:00:04.6]}
36. Rc2 {[%clk 0:00:27.7]} 36... Qg3 {[%clk 0:00:04.3]} 37. c7 {[%clk
0:00:26.7]} 37... Nf3+ {[%clk 0:00:04.7]} 38. Kh1 {[%clk 0:00:26.7]} 38... Qh2#
{[%clk 0:00:05.4]} 0-1

[Event "Late-Titled-Tuesday-Blitz-October-10-2023"]
[Site "Chess.com"]
[Date "2023.10.10"]
[Round "9"]
[White "greekplayer1"]
[Black "Harsha_Bharathakoti"]
[Result "1-0"]
[WhiteElo "2719"]
[BlackElo "2897"]
[TimeControl "180+1"]
[EndTime "15:39:17 PDT"]
[Termination "greekplayer1 won by checkmate"]

1. e4 {[%clk 0:03:00.9]} 1... c5 {[%clk 0:02:51.2]} 2. Nf3 {[%clk 0:02:59.2]}
2... d6 {[%clk 0:02:50]} 3. d4 {[%clk 0:02:59.5]} 3... cxd4 {[%clk 0:02:50.9]}
4. Nxd4 {[%clk 0:03:00.4]} 4... Nf6 {[%clk 0:02:51.5]} 5. Nc3 {[%clk 0:03:00.8]}
5... Nc6 {[%clk 0:02:52.2]} 6. Bc4 {[%clk 0:02:59.7]} 6... e6 {[%clk 0:02:52.2]}
7. O-O {[%clk 0:02:58.3]} 7... a6 {[%clk 0:02:51.5]} 8. Bb3 {[%clk 0:02:57.5]}
8... Qc7 {[%clk 0:02:51.1]} 9. Be3 {[%clk 0:02:47.3]} 9... Na5 {[%clk
0:02:48.5]} 10. f4 {[%clk 0:02:45.1]} 10... Be7 {[%clk 0:02:46.2]} 11. Qf3
{[%clk 0:02:44.6]} 11... Nxb3 {[%clk 0:02:42.1]} 12. axb3 {[%clk 0:02:45.5]}
12... O-O {[%clk 0:02:39.9]} 13. g4 {[%clk 0:02:45.1]} 13... b6 {[%clk
0:02:21.2]} 14. g5 {[%clk 0:02:38.7]} 14... Nd7 {[%clk 0:02:21.2]} 15. f5 {[%clk
0:02:29.4]} 15... Ne5 {[%clk 0:02:17.2]} 16. Qh3 {[%clk 0:02:22.2]} 16... Qd7
{[%clk 0:01:59.8]} 17. f6 {[%clk 0:02:18]} 17... Bd8 {[%clk 0:02:00.2]} 18. fxg7
{[%clk 0:02:15.5]} 18... Re8 {[%clk 0:01:43.8]} 19. Rf4 {[%clk 0:01:48]} 19...
Ng6 {[%clk 0:01:42.8]} 20. Rf2 {[%clk 0:01:40]} 20... Kxg7 {[%clk 0:01:28.6]}
21. Raf1 {[%clk 0:01:38]} 21... Rf8 {[%clk 0:01:25.1]} 22. Nd5 {[%clk
0:00:36.8]} 22... exd5 {[%clk 0:01:07.8]} 23. Nf5+ {[%clk 0:00:36.9]} 23... Kh8
{[%clk 0:01:08.2]} 24. Qh6 {[%clk 0:00:11.9]} 24... f6 {[%clk 0:01:04.7]} 25.
Bd4 {[%clk 0:00:07.9]} 25... Rf7 {[%clk 0:00:10.9]} 26. Nxd6 {[%clk 0:00:04]}
26... Qxd6 {[%clk 0:00:10.7]} 27. Rxf6 {[%clk 0:00:04]} 27... Bxf6 {[%clk
0:00:10.5]} 28. Rxf6 {[%clk 0:00:03.9]} 28... Rxf6 {[%clk 0:00:10.1]} 29. gxf6
{[%clk 0:00:03.2]} 29... dxe4 {[%clk 0:00:01.6]} 30. Qg7# {[%clk 0:00:02.7]} 1-0

[Event "Late-Titled-Tuesday-Blitz-October-10-2023"]
[Site "Chess.com"]
[Date "2023.10.10"]
[Round "9"]
[White "emeli_chess"]
[Black "Blackwhite017"]
[Result "1-0"]
[WhiteElo "2385"]
[BlackElo "2048"]
[TimeControl "180+1"]
[EndTime "15:39:17 PDT"]
[Termination "emeli_chess won on time"]

1. d4 {[%clk 0:03:00.9]} 1... d5 {[%clk 0:02:59.5]} 2. c4 {[%clk 0:03:00.7]}
2... c6 {[%clk 0:02:59.8]} 3. Nc3 {[%clk 0:03:00.8]} 3... Nf6 {[%clk 0:02:59.8]}
4. e3 {[%clk 0:03:00.4]} 4... a6 {[%clk 0:02:59]} 5. c5 {[%clk 0:03:00]} 5...
Bf5 {[%clk 0:02:57]} 6. f4 {[%clk 0:02:59.2]} 6... Nbd7 {[%clk 0:02:48]} 7. Nf3
{[%clk 0:02:58]} 7... e6 {[%clk 0:02:40.9]} 8. Be2 {[%clk 0:02:56.6]} 8... b5
{[%clk 0:02:34.1]} 9. cxb6 {[%clk 0:02:55.6]} 9... Qxb6 {[%clk 0:02:33.5]} 10.
O-O {[%clk 0:02:54.7]} 10... c5 {[%clk 0:02:32.6]} 11. Na4 {[%clk 0:02:54.6]}
11... Qa7 {[%clk 0:02:23.3]} 12. Nxc5 {[%clk 0:02:52.5]} 12... Nxc5 {[%clk
0:02:16.4]} 13. dxc5 {[%clk 0:02:52.2]} 13... Bxc5 {[%clk 0:02:15.1]} 14. Qa4+
{[%clk 0:02:50.8]} 14... Qd7 {[%clk 0:01:49]} 15. Qxd7+ {[%clk 0:02:26.7]} 15...
Nxd7 {[%clk 0:01:38.4]} 16. Nd4 {[%clk 0:02:21.4]} 16... Bxd4 {[%clk 0:01:20.7]}
17. exd4 {[%clk 0:02:21.1]} 17... O-O {[%clk 0:01:17.3]} 18. Bd2 {[%clk
0:02:18.5]} 18... Rfb8 {[%clk 0:00:58.5]} 19. b3 {[%clk 0:02:15.8]} 19... a5
{[%clk 0:00:56.5]} 20. Rfc1 {[%clk 0:02:13.7]} 20... a4 {[%clk 0:00:49.9]} 21.
b4 {[%clk 0:02:11.4]} 21... Nf6 {[%clk 0:00:46.5]} 22. a3 {[%clk 0:02:08.7]}
22... Ne4 {[%clk 0:00:42.7]} 23. Be1 {[%clk 0:02:08.4]} 23... Rc8 {[%clk
0:00:40.4]} 24. g4 {[%clk 0:01:56]} 24... Bg6 {[%clk 0:00:36.9]} 25. Kg2 {[%clk
0:01:50.8]} 25... Nd6 {[%clk 0:00:34.1]} 26. Rc5 {[%clk 0:01:48.1]} 26... Be4+
{[%clk 0:00:25.9]} 27. Kf2 {[%clk 0:01:41]} 27... Bh1 {[%clk 0:00:18.2]} 28. Ke3
{[%clk 0:01:39.8]} 28... Ne4 {[%clk 0:00:16.4]} 29. Rac1 {[%clk 0:01:27]} 29...
Nxc5 {[%clk 0:00:15.6]} 30. dxc5 {[%clk 0:01:26.4]} 30... Be4 {[%clk 0:00:12.8]}
31. b5 {[%clk 0:01:19.6]} 31... Rab8 {[%clk 0:00:12.2]} 32. Kd4 {[%clk
0:01:18.7]} 32... f6 {[%clk 0:00:11.5]} 33. b6 {[%clk 0:01:18]} 33... Bg2 {[%clk
0:00:09.7]} 34. Ba5 {[%clk 0:01:04.8]} 34... Kf7 {[%clk 0:00:06]} 35. c6 {[%clk
0:01:02.3]} 35... e5+ {[%clk 0:00:06.2]} 36. fxe5 {[%clk 0:01:01.9]} 36... fxe5+
{[%clk 0:00:06.4]} 37. Kc5 {[%clk 0:00:58.4]} 37... d4 {[%clk 0:00:04]} 38. Bb5
{[%clk 0:00:57.5]} 38... d3 {[%clk 0:00:01.3]} 39. c7 {[%clk 0:00:56.2]} 39...
Rb7 {[%clk 0:00:01.4]} 40. Bc6 {[%clk 0:00:41.2]} 1-0

[Event "Late-Titled-Tuesday-Blitz-October-10-2023"]
[Site "Chess.com"]
[Date "2023.10.10"]
[Round "9"]
[White "mac0504"]
[Black "dretch"]
[Result "0-1"]
[WhiteElo "2584"]
[BlackElo "2856"]
[TimeControl "180+1"]
[EndTime "15:39:18 PDT"]
[Termination "dretch won on time"]

1. c4 {[%clk 0:02:46.2]} 1... c6 {[%clk 0:02:58.7]} 2. b3 {[%clk 0:02:43.6]}
2... e5 {[%clk 0:02:56.9]} 3. Bb2 {[%clk 0:02:43.7]} 3... Qc7 {[%clk 0:02:52.7]}
4. Nc3 {[%clk 0:02:38.5]} 4... Nf6 {[%clk 0:02:52.1]} 5. e4 {[%clk 0:02:38.8]}
5... Bc5 {[%clk 0:02:50.9]} 6. Be2 {[%clk 0:02:32.8]} 6... O-O {[%clk
0:02:46.9]} 7. Nf3 {[%clk 0:02:33.1]} 7... d5 {[%clk 0:02:38]} 8. cxd5 {[%clk
0:02:23.1]} 8... cxd5 {[%clk 0:02:36.5]} 9. Nxd5 {[%clk 0:02:23.4]} 9... Nxd5
{[%clk 0:02:36.2]} 10. exd5 {[%clk 0:02:24.3]} 10... e4 {[%clk 0:02:35.8]} 11.
Ne5 {[%clk 0:02:13.2]} 11... Nd7 {[%clk 0:02:14.1]} 12. Nxd7 {[%clk 0:02:03.7]}
12... Bxd7 {[%clk 0:02:12.9]} 13. O-O {[%clk 0:02:02.6]} 13... Qd6 {[%clk
0:01:46.8]} 14. Qc2 {[%clk 0:01:47.2]} 14... Rfe8 {[%clk 0:01:32.4]} 15. Qc3
{[%clk 0:01:39.8]} 15... f6 {[%clk 0:01:31.9]} 16. Rac1 {[%clk 0:01:29.1]} 16...
Rac8 {[%clk 0:01:23.4]} 17. Qg3 {[%clk 0:01:27]} 17... Qxg3 {[%clk 0:01:16.4]}
18. hxg3 {[%clk 0:01:27.9]} 18... Bb4 {[%clk 0:01:16.6]} 19. Rxc8 {[%clk
0:01:06.7]} 19... Rxc8 {[%clk 0:01:11.7]} 20. Rc1 {[%clk 0:01:07.4]} 20... Bxd2
{[%clk 0:01:08.6]} 21. Rxc8+ {[%clk 0:01:04]} 21... Bxc8 {[%clk 0:01:09.5]} 22.
Bd4 {[%clk 0:00:59.5]} 22... a6 {[%clk 0:00:58.5]} 23. Bc5 {[%clk 0:00:53.6]}
23... Kf7 {[%clk 0:00:55.9]} 24. a4 {[%clk 0:00:45]} 24... Bd7 {[%clk
0:00:51.5]} 25. Kf1 {[%clk 0:00:38.8]} 25... f5 {[%clk 0:00:50.6]} 26. Bd1
{[%clk 0:00:04.5]} 26... b5 {[%clk 0:00:44.8]} 27. Ke2 {[%clk 0:00:04.2]} 27...
Bc3 {[%clk 0:00:44]} 28. Ke3 {[%clk 0:00:03.2]} 28... g5 {[%clk 0:00:34.8]} 29.
axb5 {[%clk 0:00:01.8]} 29... Bxb5 {[%clk 0:00:33.6]} 30. b4 {[%clk 0:00:01.7]}
30... Bc4 {[%clk 0:00:24.4]} 31. Be2 {[%clk 0:00:01.6]} 31... f4+ {[%clk
0:00:19.9]} 32. gxf4 {[%clk 0:00:01.8]} 32... gxf4+ {[%clk 0:00:20.8]} 33. Kxf4
{[%clk 0:00:02.1]} 33... Bxe2 {[%clk 0:00:21.5]} 34. Kxe4 {[%clk 0:00:02.7]}
34... Bf1 {[%clk 0:00:21]} 35. g4 {[%clk 0:00:02.7]} 35... Bg2+ {[%clk
0:00:20.1]} 36. Kd3 {[%clk 0:00:03.3]} 36... Be5 {[%clk 0:00:20.4]} 37. Kc4
{[%clk 0:00:03.2]} 37... Bf3 {[%clk 0:00:19.8]} 38. Bd4 {[%clk 0:00:01.5]} 38...
Bd6 {[%clk 0:00:19.4]} 0-1

[Event "Late-Titled-Tuesday-Blitz-October-10-2023"]
[Site "Chess.com"]
[Date "2023.10.10"]
[Round "9"]
[White "SanchezKelvin"]
[Black "Sofiia_Hryzlova"]
[Result "0-1"]
[WhiteElo "2563"]
[BlackElo "2375"]
[TimeControl "180+1"]
[EndTime "15:39:21 PDT"]
[Termination "Sofiia_Hryzlova won by resignation"]

1. e4 {[%clk 0:02:36.6]} 1... Nf6 {[%clk 0:02:54.5]} 2. e5 {[%clk 0:02:36.5]}
2... Ne4 {[%clk 0:02:49.4]} 3. c4 {[%clk 0:02:37.4]} 3... d5 {[%clk 0:02:43.2]}
4. exd6 {[%clk 0:02:36.8]} 4... cxd6 {[%clk 0:02:40.6]} 5. d4 {[%clk 0:02:30.5]}
5... g6 {[%clk 0:02:38.5]} 6. Nc3 {[%clk 0:02:28.9]} 6... Nxc3 {[%clk
0:02:38.3]} 7. bxc3 {[%clk 0:02:28.6]} 7... Bg7 {[%clk 0:02:38.7]} 8. Bd3 {[%clk
0:02:28.1]} 8... O-O {[%clk 0:02:38.1]} 9. Ne2 {[%clk 0:02:27.5]} 9... e5 {[%clk
0:02:37.6]} 10. O-O {[%clk 0:02:19.4]} 10... Nc6 {[%clk 0:02:36.9]} 11. Be4
{[%clk 0:02:17.3]} 11... Re8 {[%clk 0:02:34.4]} 12. Rb1 {[%clk 0:02:11.2]} 12...
exd4 {[%clk 0:02:28.5]} 13. Bxc6 {[%clk 0:02:10.1]} 13... bxc6 {[%clk
0:02:28.4]} 14. cxd4 {[%clk 0:02:09.4]} 14... Bg4 {[%clk 0:02:22.1]} 15. f3
{[%clk 0:02:07.7]} 15... Bf5 {[%clk 0:02:22.2]} 16. Rb3 {[%clk 0:02:02.9]} 16...
Qa5 {[%clk 0:02:11.2]} 17. Ng3 {[%clk 0:01:54.9]} 17... Be6 {[%clk 0:02:07.6]}
18. Ra3 {[%clk 0:01:49.2]} 18... Qb4 {[%clk 0:02:06.5]} 19. Ra4 {[%clk
0:01:42.8]} 19... Qb1 {[%clk 0:02:00.2]} 20. Bf4 {[%clk 0:01:34.5]} 20... Qb2
{[%clk 0:01:45.7]} 21. d5 {[%clk 0:01:19.7]} 21... cxd5 {[%clk 0:01:43.6]} 22.
cxd5 {[%clk 0:01:20.6]} 22... Bd7 {[%clk 0:01:37.7]} 23. Re4 {[%clk 0:01:17.8]}
23... Qxa2 {[%clk 0:01:16.6]} 24. Bxd6 {[%clk 0:00:56.7]} 24... a5 {[%clk
0:01:13.3]} 25. Rf2 {[%clk 0:00:50]} 25... Qa1 {[%clk 0:00:59.9]} 26. Qxa1
{[%clk 0:00:47.8]} 26... Bxa1 {[%clk 0:01:00.8]} 27. Ra2 {[%clk 0:00:43.6]}
27... Rxe4 {[%clk 0:00:58.6]} 28. Nxe4 {[%clk 0:00:40.7]} 28... Bd4+ {[%clk
0:00:58]} 29. Kf1 {[%clk 0:00:40]} 29... a4 {[%clk 0:00:48.2]} 30. Bc5 {[%clk
0:00:36.8]} 30... Be5 {[%clk 0:00:43.8]} 31. Ke2 {[%clk 0:00:20.5]} 31... Rb8
{[%clk 0:00:41.6]} 32. Bd6 {[%clk 0:00:16.1]} 32... Rb2+ {[%clk 0:00:40.9]} 33.
Rxb2 {[%clk 0:00:16.1]} 33... Bxb2 {[%clk 0:00:41.8]} 34. Nc5 {[%clk 0:00:15.7]}
34... a3 {[%clk 0:00:33.7]} 35. Nxd7 {[%clk 0:00:12.6]} 35... a2 {[%clk
0:00:34.1]} 36. Bf4 {[%clk 0:00:07.1]} 36... a1=Q {[%clk 0:00:33.2]} 37. Be3
{[%clk 0:00:07.7]} 37... Qa6+ {[%clk 0:00:31.7]} 38. Kf2 {[%clk 0:00:07.6]}
38... Qd3 {[%clk 0:00:29.3]} 39. Nc5 {[%clk 0:00:06]} 39... Qxd5 {[%clk
0:00:26.3]} 40. g4 {[%clk 0:00:06.1]} 40... Bd4 {[%clk 0:00:26.3]} 41. Ne4
{[%clk 0:00:04.9]} 41... Qa2+ {[%clk 0:00:26.1]} 42. Kg3 {[%clk 0:00:04.4]}
42... Bxe3 {[%clk 0:00:26.5]} 0-1